[Event "Titled Tuesday Blitz November 22 Early 2022"]
[White "Levitan, Caleb Levi"]
[Black "Jiganchine, Roman"]
[WhiteFideId "14332620"]
[BlackFideId "2603667"]
[WhiteElo "1963"]
[BlackElo "2307"]
[Result "1-0"]
[Round "10"]
[TimeControl "180+1"]
[Date "2022.11.23"]
[WhiteClock "0:00:20"]
[BlackClock "0:01:28"]

1. e4 {[%clk 0:03:00]}  c6 {[%clk 0:02:53]} 2. d4 {[%clk 0:03:00]}  d5 {[%clk 0:02:53]} 3. exd5 {[%clk 0:03:01]}  cxd5 {[%clk 0:02:53]} 4. Bd3 {[%clk 0:03:01]}  Nc6 {[%clk 0:02:53]} 5. c3 {[%clk 0:03:01]}  Nf6 {[%clk 0:02:52]} 6. Bf4 {[%clk 0:03:01]}  Bg4 {[%clk 0:02:52]} 7. Qb3 {[%clk 0:03:01]}  Qc8 {[%clk 0:02:52]} 8. Nd2 {[%clk 0:03:01]}  e6 {[%clk 0:02:52]} 9. Ngf3 {[%clk 0:03:00]}  Be7 {[%clk 0:02:52]} 10. O-O {[%clk 0:03:00]}  O-O {[%clk 0:02:52]} 11. Ne5 {[%clk 0:03:00]}  Bh5 {[%clk 0:02:49]} 12. Rfe1 {[%clk 0:02:55]}  Nxe5 {[%clk 0:02:48]} 13. Bxe5 {[%clk 0:02:54]}  Nd7 {[%clk 0:02:47]} 14. Bg3 {[%clk 0:02:50]}  Bg6 {[%clk 0:02:43]} 15. Bxg6 {[%clk 0:02:49]}  hxg6 {[%clk 0:02:43]} 16. Nf3 {[%clk 0:02:50]}  a6 {[%clk 0:02:34]} 17. Qd1 {[%clk 0:02:42]}  b5 {[%clk 0:02:32]} 18. Bf4 {[%clk 0:02:34]}  b4 {[%clk 0:02:29]} 19. Rc1 {[%clk 0:02:32]}  Qb7 {[%clk 0:02:25]} 20. c4 {[%clk 0:02:15]}  dxc4 {[%clk 0:02:24]} 21. Rxc4 {[%clk 0:02:15]}  Bf6 {[%clk 0:02:06]} 22. Bg5 {[%clk 0:01:44]}  Rac8 {[%clk 0:01:52]} 23. Rxc8 {[%clk 0:01:37]}  Rxc8 {[%clk 0:01:53]} 24. Qd3 {[%clk 0:01:35]}  Qb5 {[%clk 0:01:45]} 25. Qxb5 {[%clk 0:01:33]}  axb5 {[%clk 0:01:46]} 26. Bxf6 {[%clk 0:01:32]}  Nxf6 {[%clk 0:01:46]} 27. Kf1 {[%clk 0:01:05]}  Nd5 {[%clk 0:01:42]} 28. g3 {[%clk 0:00:33]}  Ra8 {[%clk 0:01:36]} 29. Ra1 {[%clk 0:00:29]}  Rc8 {[%clk 0:01:35]} 30. Ne1 {[%clk 0:00:20]}  Rc2 {[%clk 0:01:28]} 31. Nxc2 {[%clk 0:00:20]} 1-0


[Site "https://www.chess.com"]

[Event "Titled Tuesday Blitz November 22 Early 2022"]
[White "Ljukin, Sergei"]
[Black "Makhmudov, Shukhrat"]
[WhiteFideId "14102200"]
[BlackFideId "14200775"]
[WhiteElo "2312"]
[BlackElo "2135"]
[Result "1-0"]
[Round "10"]
[TimeControl "180+1"]
[Date "2022.11.23"]
[WhiteClock "0:02:01"]
[BlackClock "0:00:29"]

1. e4 {[%clk 0:02:54]}  e5 {[%clk 0:02:57]} 2. Nf3 {[%clk 0:02:54]}  Nc6 {[%clk 0:02:57]} 3. Bb5 {[%clk 0:02:54]}  a6 {[%clk 0:02:57]} 4. Ba4 {[%clk 0:02:54]}  Nf6 {[%clk 0:02:57]} 5. Qe2 {[%clk 0:02:53]}  b5 {[%clk 0:02:56]} 6. Bb3 {[%clk 0:02:53]}  Be7 {[%clk 0:02:57]} 7. c3 {[%clk 0:02:54]}  d6 {[%clk 0:02:57]} 8. O-O {[%clk 0:02:54]}  Na5 {[%clk 0:02:54]} 9. Bc2 {[%clk 0:02:53]}  c5 {[%clk 0:02:54]} 10. d4 {[%clk 0:02:53]}  Nc6 {[%clk 0:02:51]} 11. dxe5 {[%clk 0:02:47]}  dxe5 {[%clk 0:02:50]} 12. Rd1 {[%clk 0:02:47]}  Qc7 {[%clk 0:02:50]} 13. Nbd2 {[%clk 0:02:47]}  c4 {[%clk 0:02:50]} 14. Nf1 {[%clk 0:02:47]}  O-O {[%clk 0:02:49]} 15. Ne3 {[%clk 0:02:47]}  Bc5 {[%clk 0:02:17]} 16. Nd5 {[%clk 0:02:44]}  Qd8 {[%clk 0:02:13]} 17. Bg5 {[%clk 0:02:43]}  Bd7 {[%clk 0:01:52]} 18. Bxf6 {[%clk 0:02:22]}  gxf6 {[%clk 0:01:51]} 19. Nh4 {[%clk 0:02:23]}  Kh8 {[%clk 0:01:33]} 20. Nf5 {[%clk 0:02:22]}  Bxf5 {[%clk 0:01:26]} 21. exf5 {[%clk 0:02:22]}  Rg8 {[%clk 0:01:19]} 22. Qh5 {[%clk 0:02:18]}  Ra7 {[%clk 0:00:56]} 23. Be4 {[%clk 0:02:16]}  Rg5 {[%clk 0:00:49]} 24. Qh6 {[%clk 0:02:10]}  Ne7 {[%clk 0:00:38]} 25. Nxf6 {[%clk 0:02:05]}  Bxf2+ {[%clk 0:00:29]} 26. Kh1 {[%clk 0:02:01]} 1-0


[Site "https://www.chess.com"]

[Event "Titled Tuesday Blitz November 22 Early 2022"]
[White "Martin, Lewis"]
[Black "Zacurdajev, Dmitry"]
[WhiteFideId "410551"]
[BlackFideId "4196309"]
[WhiteElo "2145"]
[BlackElo "2179"]
[Result "0-1"]
[Round "10"]
[TimeControl "180+1"]
[Date "2022.11.23"]
[WhiteClock "0:00:15"]
[BlackClock "0:00:06"]

1. e4 {[%clk 0:02:42]}  c6 {[%clk 0:02:59]} 2. d4 {[%clk 0:02:42]}  d5 {[%clk 0:03:00]} 3. Nc3 {[%clk 0:02:42]}  dxe4 {[%clk 0:03:00]} 4. Nxe4 {[%clk 0:02:43]}  Nf6 {[%clk 0:03:01]} 5. Nxf6+ {[%clk 0:02:42]}  exf6 {[%clk 0:03:02]} 6. c3 {[%clk 0:02:41]}  Bd6 {[%clk 0:03:03]} 7. Qc2 {[%clk 0:02:39]}  Na6 {[%clk 0:03:02]} 8. Bd3 {[%clk 0:02:36]}  Nc7 {[%clk 0:03:02]} 9. Ne2 {[%clk 0:02:35]}  h5 {[%clk 0:03:01]} 10. Be3 {[%clk 0:02:34]}  Be6 {[%clk 0:03:00]} 11. b3 {[%clk 0:02:31]}  Kf8 {[%clk 0:02:51]} 12. h3 {[%clk 0:02:26]}  Nd5 {[%clk 0:02:49]} 13. O-O-O {[%clk 0:02:22]}  Qa5 {[%clk 0:02:38]} 14. Kb1 {[%clk 0:02:18]}  b5 {[%clk 0:02:32]} 15. Bd2 {[%clk 0:02:13]}  Qb6 {[%clk 0:02:23]} 16. c4 {[%clk 0:02:07]}  bxc4 {[%clk 0:02:22]} 17. Bxc4 {[%clk 0:02:07]}  a5 {[%clk 0:02:14]} 18. a4 {[%clk 0:02:03]}  Rb8 {[%clk 0:02:08]} 19. Nc1 {[%clk 0:01:55]}  g6 {[%clk 0:01:35]} 20. Ka2 {[%clk 0:01:49]}  Kg7 {[%clk 0:01:35]} 21. Nd3 {[%clk 0:01:33]}  Bf5 {[%clk 0:01:22]} 22. f3 {[%clk 0:01:21]}  Bb4 {[%clk 0:01:15]} 23. g4 {[%clk 0:01:15]}  hxg4 {[%clk 0:01:04]} 24. hxg4 {[%clk 0:01:11]}  Bxd2 {[%clk 0:00:47]} 25. Qxd2 {[%clk 0:01:06]}  Bxd3 {[%clk 0:00:21]} 26. Rxh8 {[%clk 0:00:57]}  Rxh8 {[%clk 0:00:07]} 27. Bxd3 {[%clk 0:00:53]}  Rb8 {[%clk 0:00:05]} 28. Bc4 {[%clk 0:00:51]}  Nb4+ {[%clk 0:00:06]} 29. Kb1 {[%clk 0:00:47]}  Rh8 {[%clk 0:00:07]} 30. Re1 {[%clk 0:00:40]}  Qc7 {[%clk 0:00:07]} 31. Re2 {[%clk 0:00:36]}  Rh1+ {[%clk 0:00:07]} 32. Kb2 {[%clk 0:00:36]}  Qg3 {[%clk 0:00:04]} 33. Re7 {[%clk 0:00:33]}  Qg1 {[%clk 0:00:04]} 34. Rxf7+ {[%clk 0:00:32]}  Kg8 {[%clk 0:00:02]} 35. Rxf6+ {[%clk 0:00:31]}  Nd5 {[%clk 0:00:03]} 36. Bxd5+ {[%clk 0:00:30]}  cxd5 {[%clk 0:00:03]} 37. Rxg6+ {[%clk 0:00:29]}  Kf7 {[%clk 0:00:04]} 38. Qg5 {[%clk 0:00:19]}  Qb1+ {[%clk 0:00:03]} 39. Kc3 {[%clk 0:00:19]}  Rc1+ {[%clk 0:00:04]} 40. Kd2 {[%clk 0:00:19]}  Rc2+ {[%clk 0:00:04]} 41. Ke3 {[%clk 0:00:18]}  Qc1+ {[%clk 0:00:05]} 42. Kd3 {[%clk 0:00:17]}  Rc3+ {[%clk 0:00:05]} 43. Ke2 {[%clk 0:00:17]}  Qb2+ {[%clk 0:00:06]} 44. Qd2 {[%clk 0:00:15]}  Rc2 {[%clk 0:00:06]} 0-1


[Site "https://www.chess.com"]

[Event "Titled Tuesday Blitz November 22 Early 2022"]
[White "Matveeva, Olga"]
[Black "Skibbe, Willi"]
[WhiteFideId "24107018"]
[BlackFideId "4682190"]
[WhiteElo "2055"]
[BlackElo "2366"]
[Result "1-0"]
[Round "10"]
[TimeControl "180+1"]
[Date "2022.11.23"]
[WhiteClock "0:02:05"]
[BlackClock "0:01:52"]

1. d4 {[%clk 0:03:00]}  d5 {[%clk 0:02:26]} 2. c4 {[%clk 0:03:00]}  e6 {[%clk 0:02:26]} 3. Nf3 {[%clk 0:03:00]}  Nf6 {[%clk 0:02:26]} 4. g3 {[%clk 0:03:01]}  Bb4+ {[%clk 0:02:22]} 5. Bd2 {[%clk 0:03:00]}  a5 {[%clk 0:02:20]} 6. Bg2 {[%clk 0:03:00]}  O-O {[%clk 0:02:19]} 7. O-O {[%clk 0:03:00]}  c5 {[%clk 0:02:19]} 8. dxc5 {[%clk 0:02:55]}  d4 {[%clk 0:02:18]} 9. Bxb4 {[%clk 0:02:40]}  axb4 {[%clk 0:02:18]} 10. Qxd4 {[%clk 0:02:39]}  Qa5 {[%clk 0:02:18]} 11. Rd1 {[%clk 0:02:31]}  Nc6 {[%clk 0:02:18]} 12. Qh4 {[%clk 0:02:23]}  Qxc5 {[%clk 0:02:04]} 13. Nbd2 {[%clk 0:02:22]}  e5 {[%clk 0:02:00]} 14. Ng5 {[%clk 0:02:15]}  h6 {[%clk 0:01:58]} 15. Nge4 {[%clk 0:02:05]}  Nxe4 {[%clk 0:01:58]} 16. Nxe4 {[%clk 0:02:06]}  Qxc4 {[%clk 0:01:52]} 17. Nf6+ {[%clk 0:02:05]} 1-0


[Site "https://www.chess.com"]

[Event "Titled Tuesday Blitz November 22 Early 2022"]
[White "Mohammed, Zozek Salah Mohammed"]
[Black "Manon-og, Ramon Jr."]
[WhiteFideId "4803361"]
[BlackFideId "5200776"]
[WhiteElo "2199"]
[BlackElo "2314"]
[Result "1/2-1/2"]
[Round "10"]
[TimeControl "180+1"]
[Date "2022.11.23"]
[WhiteClock "0:00:07"]
[BlackClock "0:00:05"]

1. d4 {[%clk 0:02:34]}  Nf6 {[%clk 0:02:58]} 2. Nf3 {[%clk 0:02:31]}  g6 {[%clk 0:02:58]} 3. g3 {[%clk 0:02:32]}  Bg7 {[%clk 0:02:58]} 4. Bg2 {[%clk 0:02:33]}  c6 {[%clk 0:02:59]} 5. O-O {[%clk 0:02:33]}  O-O {[%clk 0:02:59]} 6. c4 {[%clk 0:02:34]}  d5 {[%clk 0:02:59]} 7. cxd5 {[%clk 0:02:34]}  cxd5 {[%clk 0:02:59]} 8. Ne5 {[%clk 0:02:35]}  Ne4 {[%clk 0:02:57]} 9. Nc3 {[%clk 0:02:34]}  Nxc3 {[%clk 0:02:56]} 10. bxc3 {[%clk 0:02:35]}  Nc6 {[%clk 0:02:44]} 11. Nxc6 {[%clk 0:02:33]}  bxc6 {[%clk 0:02:45]} 12. e4 {[%clk 0:02:33]}  e6 {[%clk 0:02:38]} 13. e5 {[%clk 0:02:30]}  Ba6 {[%clk 0:02:37]} 14. Re1 {[%clk 0:02:29]}  c5 {[%clk 0:02:38]} 15. Ba3 {[%clk 0:02:28]}  Qa5 {[%clk 0:02:19]} 16. Bxc5 {[%clk 0:02:24]}  Rfc8 {[%clk 0:02:18]} 17. Bb4 {[%clk 0:02:21]}  Qc7 {[%clk 0:02:13]} 18. Qa4 {[%clk 0:02:12]}  Bd3 {[%clk 0:02:03]} 19. Qa5 {[%clk 0:02:10]}  Qc6 {[%clk 0:02:01]} 20. Bf1 {[%clk 0:02:08]}  Be4 {[%clk 0:01:57]} 21. Bb5 {[%clk 0:02:01]}  Qb7 {[%clk 0:01:56]} 22. Ba6 {[%clk 0:02:00]}  Qd7 {[%clk 0:01:44]} 23. Bxc8 {[%clk 0:01:58]}  Qxc8 {[%clk 0:01:44]} 24. Qc5 {[%clk 0:01:53]}  Qd8 {[%clk 0:01:44]} 25. a4 {[%clk 0:01:49]}  Qg5 {[%clk 0:01:41]} 26. Rxe4 {[%clk 0:01:49]}  dxe4 {[%clk 0:01:41]} 27. Qc6 {[%clk 0:01:49]}  Rd8 {[%clk 0:01:29]} 28. Qxe4 {[%clk 0:01:49]}  Bf8 {[%clk 0:01:23]} 29. Bxf8 {[%clk 0:01:47]}  Kxf8 {[%clk 0:01:23]} 30. Rd1 {[%clk 0:01:40]}  Qe7 {[%clk 0:01:18]} 31. Qc6 {[%clk 0:01:33]}  Qa3 {[%clk 0:01:12]} 32. Rb1 {[%clk 0:01:28]}  Kg8 {[%clk 0:00:59]} 33. Rb7 {[%clk 0:01:24]}  Qc1+ {[%clk 0:00:47]} 34. Kg2 {[%clk 0:01:24]}  a5 {[%clk 0:00:47]} 35. h4 {[%clk 0:01:16]}  Qc2 {[%clk 0:00:41]} 36. Qf3 {[%clk 0:01:08]}  Rf8 {[%clk 0:00:39]} 37. h5 {[%clk 0:01:06]}  gxh5 {[%clk 0:00:35]} 38. Qxh5 {[%clk 0:00:53]}  Qxa4 {[%clk 0:00:34]} 39. Qg5+ {[%clk 0:00:51]}  Kh8 {[%clk 0:00:34]} 40. Qf6+ {[%clk 0:00:51]}  Kg8 {[%clk 0:00:34]} 41. Rb1 {[%clk 0:00:33]}  Qc2 {[%clk 0:00:29]} 42. Rh1 {[%clk 0:00:29]}  Qe4+ {[%clk 0:00:19]} 43. Qf3 {[%clk 0:00:28]}  Qg6 {[%clk 0:00:15]} 44. Rh4 {[%clk 0:00:25]}  Kh8 {[%clk 0:00:14]} 45. Rg4 {[%clk 0:00:25]}  Qh6 {[%clk 0:00:14]} 46. Qe4 {[%clk 0:00:20]}  a4 {[%clk 0:00:12]} 47. d5 {[%clk 0:00:14]}  exd5 {[%clk 0:00:10]} 48. Qxa4 {[%clk 0:00:13]}  Qe6 {[%clk 0:00:08]} 49. Qd4 {[%clk 0:00:13]}  Rc8 {[%clk 0:00:07]} 50. Rh4 {[%clk 0:00:09]}  Rc4 {[%clk 0:00:07]} 51. Qa7 {[%clk 0:00:06]}  Rxh4 {[%clk 0:00:04]} 52. Qb8+ {[%clk 0:00:06]}  Kg7 {[%clk 0:00:03]} 53. gxh4 {[%clk 0:00:07]}  Qg4+ {[%clk 0:00:03]} 54. Kf1 {[%clk 0:00:07]}  Qd1+ {[%clk 0:00:03]} 55. Kg2 {[%clk 0:00:05]}  Qg4+ {[%clk 0:00:04]} 56. Kf1 {[%clk 0:00:06]}  Qd1+ {[%clk 0:00:04]} 57. Kg2 {[%clk 0:00:07]}  Qg4+ {[%clk 0:00:05]} 1/2-1/2


[Site "https://www.chess.com"]

[Event "Titled Tuesday Blitz November 22 Early 2022"]
[White "Nanditha, V"]
[Black "Arbunic Castro, Giovanna"]
[WhiteFideId "46626697"]
[BlackFideId "3400549"]
[WhiteElo "1564"]
[BlackElo "1969"]
[Result "1-0"]
[Round "10"]
[TimeControl "180+1"]
[Date "2022.11.23"]
[WhiteClock "0:00:06"]
[BlackClock "0:00:02"]

1. e4 {[%clk 0:02:58]}  g6 {[%clk 0:02:57]} 2. Nf3 {[%clk 0:02:57]}  Bg7 {[%clk 0:02:57]} 3. d4 {[%clk 0:02:56]}  c5 {[%clk 0:02:56]} 4. c3 {[%clk 0:02:56]}  d5 {[%clk 0:02:53]} 5. e5 {[%clk 0:02:55]}  cxd4 {[%clk 0:02:52]} 6. cxd4 {[%clk 0:02:55]}  Nc6 {[%clk 0:02:52]} 7. Nc3 {[%clk 0:02:54]}  Nh6 {[%clk 0:02:48]} 8. Bb5 {[%clk 0:02:47]}  Nf5 {[%clk 0:02:43]} 9. O-O {[%clk 0:02:45]}  O-O {[%clk 0:02:41]} 10. Bg5 {[%clk 0:02:26]}  h6 {[%clk 0:02:39]} 11. Bh4 {[%clk 0:02:22]}  Nxh4 {[%clk 0:02:35]} 12. Nxh4 {[%clk 0:02:23]}  e6 {[%clk 0:02:35]} 13. g3 {[%clk 0:01:57]}  Qb6 {[%clk 0:02:33]} 14. Nf3 {[%clk 0:01:36]}  f6 {[%clk 0:02:32]} 15. Qd3 {[%clk 0:01:18]}  Kh7 {[%clk 0:02:26]} 16. Nh4 {[%clk 0:01:03]}  f5 {[%clk 0:02:25]} 17. Nf3 {[%clk 0:01:03]}  Bd7 {[%clk 0:02:21]} 18. Rab1 {[%clk 0:00:53]}  Be8 {[%clk 0:02:16]} 19. Na4 {[%clk 0:00:44]}  Qd8 {[%clk 0:02:05]} 20. Nc5 {[%clk 0:00:43]}  Qe7 {[%clk 0:02:04]} 21. Rfc1 {[%clk 0:00:32]}  g5 {[%clk 0:02:02]} 22. b4 {[%clk 0:00:15]}  Bg6 {[%clk 0:02:00]} 23. Rb2 {[%clk 0:00:16]}  f4 {[%clk 0:01:58]} 24. Qe2 {[%clk 0:00:16]}  fxg3 {[%clk 0:01:56]} 25. fxg3 {[%clk 0:00:16]}  Bh5 {[%clk 0:01:48]} 26. Rf1 {[%clk 0:00:16]}  Nxd4 {[%clk 0:01:39]} 27. Nxd4 {[%clk 0:00:14]}  Bxe2 {[%clk 0:01:37]} 28. Bxe2 {[%clk 0:00:15]}  Bxe5 {[%clk 0:01:30]} 29. Rd2 {[%clk 0:00:13]}  Rxf1+ {[%clk 0:01:16]} 30. Bxf1 {[%clk 0:00:13]}  Bxd4+ {[%clk 0:01:12]} 31. Rxd4 {[%clk 0:00:14]}  Rd8 {[%clk 0:01:07]} 32. Bh3 {[%clk 0:00:12]}  e5 {[%clk 0:01:06]} 33. Rd2 {[%clk 0:00:12]}  Rd6 {[%clk 0:01:02]} 34. Rf2 {[%clk 0:00:07]}  Rf6 {[%clk 0:00:59]} 35. Bf5+ {[%clk 0:00:08]}  Kh8 {[%clk 0:00:55]} 36. g4 {[%clk 0:00:08]}  e4 {[%clk 0:00:54]} 37. Kf1 {[%clk 0:00:06]}  e3 {[%clk 0:00:53]} 38. Rc2 {[%clk 0:00:06]}  d4 {[%clk 0:00:52]} 39. Ke2 {[%clk 0:00:07]}  Qe5 {[%clk 0:00:50]} 40. Kd3 {[%clk 0:00:05]}  Rxf5 {[%clk 0:00:43]} 41. gxf5 {[%clk 0:00:05]}  Qxf5+ {[%clk 0:00:43]} 42. Ne4 {[%clk 0:00:06]}  Qf1+ {[%clk 0:00:35]} 43. Kxd4 {[%clk 0:00:05]}  e2 {[%clk 0:00:34]} 44. Rc8+ {[%clk 0:00:05]}  Kg7 {[%clk 0:00:32]} 45. Rc7+ {[%clk 0:00:05]}  Kg6 {[%clk 0:00:31]} 46. Rd7 {[%clk 0:00:05]}  Kh5 {[%clk 0:00:29]} 47. Rd6 {[%clk 0:00:06]}  e1=Q {[%clk 0:00:23]} 48. Ng3+ {[%clk 0:00:07]}  Kg4 {[%clk 0:00:21]} 49. Rxh6 {[%clk 0:00:06]}  Qxg3 {[%clk 0:00:19]} 50. hxg3 {[%clk 0:00:06]}  Qd1+ {[%clk 0:00:19]} 51. Kc5 {[%clk 0:00:06]}  Qc1+ {[%clk 0:00:16]} 52. Kb5 {[%clk 0:00:06]}  Kxg3 {[%clk 0:00:16]} 53. Rg6 {[%clk 0:00:05]}  g4 {[%clk 0:00:15]} 54. Rg7 {[%clk 0:00:06]}  Qd2 {[%clk 0:00:14]} 55. Rxb7 {[%clk 0:00:05]}  Qd5+ {[%clk 0:00:13]} 56. Ka6 {[%clk 0:00:05]}  Kf3 {[%clk 0:00:12]} 57. Rxa7 {[%clk 0:00:05]}  g3 {[%clk 0:00:12]} 58. b5 {[%clk 0:00:06]}  g2 {[%clk 0:00:11]} 59. Rg7 {[%clk 0:00:05]}  Qd6+ {[%clk 0:00:11]} 60. b6 {[%clk 0:00:05]}  Qe5 {[%clk 0:00:10]} 61. Rg8 {[%clk 0:00:04]}  Qb2 {[%clk 0:00:09]} 62. Rxg2 {[%clk 0:00:04]}  Kxg2 {[%clk 0:00:08]} 63. a4 {[%clk 0:00:04]}  Qe2+ {[%clk 0:00:06]} 64. Ka7 {[%clk 0:00:05]}  Qc4 {[%clk 0:00:04]} 65. a5 {[%clk 0:00:05]}  Qb5 {[%clk 0:00:04]} 66. a6 {[%clk 0:00:05]}  Qd7+ {[%clk 0:00:02]} 67. b7 {[%clk 0:00:05]}  Qc7 {[%clk 0:00:02]} 68. Ka8 {[%clk 0:00:06]}  Qb6 {[%clk 0:00:02]} 69. a7 {[%clk 0:00:06]} 1-0


[Site "https://www.chess.com"]

[Event "Titled Tuesday Blitz November 22 Early 2022"]
[White "Nguyen Hong Nhung"]
[Black "Hambleton, Aman"]
[WhiteFideId "12412201"]
[BlackFideId "2606577"]
[WhiteElo "1904"]
[BlackElo "2538"]
[Result "0-1"]
[Round "10"]
[TimeControl "180+1"]
[Date "2022.11.23"]
[WhiteClock "0:00:02"]
[BlackClock "0:00:03"]

1. e4 {[%clk 0:03:00]}  c5 {[%clk 0:02:59]} 2. Nc3 {[%clk 0:03:00]}  e6 {[%clk 0:02:45]} 3. f4 {[%clk 0:02:59]}  a6 {[%clk 0:02:41]} 4. a4 {[%clk 0:02:58]}  d5 {[%clk 0:02:40]} 5. d3 {[%clk 0:02:57]}  Nf6 {[%clk 0:02:39]} 6. Nf3 {[%clk 0:02:56]}  Nc6 {[%clk 0:02:39]} 7. g3 {[%clk 0:02:53]}  dxe4 {[%clk 0:02:39]} 8. Nxe4 {[%clk 0:02:54]}  Nxe4 {[%clk 0:02:39]} 9. dxe4 {[%clk 0:02:54]}  Qxd1+ {[%clk 0:02:39]} 10. Kxd1 {[%clk 0:02:55]}  b6 {[%clk 0:02:34]} 11. c3 {[%clk 0:02:55]}  Bb7 {[%clk 0:02:35]} 12. Kc2 {[%clk 0:02:53]}  Nd4+ {[%clk 0:02:11]} 13. cxd4 {[%clk 0:02:11]}  Bxe4+ {[%clk 0:02:08]} 14. Bd3 {[%clk 0:02:11]}  Bxf3 {[%clk 0:02:09]} 15. Rf1 {[%clk 0:02:09]}  Bg2 {[%clk 0:02:01]} 16. Rf2 {[%clk 0:02:07]}  Bd5 {[%clk 0:02:00]} 17. dxc5 {[%clk 0:01:47]}  Bxc5 {[%clk 0:02:01]} 18. Re2 {[%clk 0:01:47]}  O-O {[%clk 0:01:53]} 19. Bd2 {[%clk 0:01:44]}  Rfc8 {[%clk 0:01:20]} 20. Bc3 {[%clk 0:01:38]}  a5 {[%clk 0:00:48]} 21. Bb5 {[%clk 0:01:05]}  Rc7 {[%clk 0:00:34]} 22. Kd2 {[%clk 0:00:44]}  Rd8 {[%clk 0:00:33]} 23. Ke1 {[%clk 0:00:43]}  f6 {[%clk 0:00:18]} 24. Rd1 {[%clk 0:00:41]}  Kf7 {[%clk 0:00:17]} 25. Red2 {[%clk 0:00:37]}  g6 {[%clk 0:00:07]} 26. g4 {[%clk 0:00:23]}  Rdc8 {[%clk 0:00:07]} 27. h3 {[%clk 0:00:17]}  Be3 {[%clk 0:00:07]} 28. Rd3 {[%clk 0:00:16]}  Bxf4 {[%clk 0:00:07]} 29. Kf2 {[%clk 0:00:11]}  g5 {[%clk 0:00:07]} 30. Kg1 {[%clk 0:00:06]}  Kg6 {[%clk 0:00:07]} 31. Bd4 {[%clk 0:00:06]}  Rc2 {[%clk 0:00:04]} 32. Bf2 {[%clk 0:00:05]}  Rxb2 {[%clk 0:00:03]} 33. Bxb6 {[%clk 0:00:01]}  Rg2+ {[%clk 0:00:02]} 34. Kf1 {[%clk 0:00:02]}  Rcc2 {[%clk 0:00:02]} 35. Rxd5 {[%clk 0:00:01]}  exd5 {[%clk 0:00:02]} 36. Bd3+ {[%clk 0:00:01]}  Kf7 {[%clk 0:00:03]} 37. Bxc2 {[%clk 0:00:02]}  Rxc2 {[%clk 0:00:04]} 38. Rxd5 {[%clk 0:00:03]}  Ra2 {[%clk 0:00:02]} 39. Rxa5 {[%clk 0:00:02]}  Ra3 {[%clk 0:00:03]} 40. Ra7+ {[%clk 0:00:03]}  Kg6 {[%clk 0:00:02]} 41. Bc5 {[%clk 0:00:04]}  Rxh3 {[%clk 0:00:02]} 42. a5 {[%clk 0:00:04]}  Rf3+ {[%clk 0:00:02]} 43. Ke2 {[%clk 0:00:04]}  Rg3 {[%clk 0:00:02]} 44. Bf8 {[%clk 0:00:04]}  Rxg4 {[%clk 0:00:01]} 45. Rg7+ {[%clk 0:00:05]}  Kf5 {[%clk 0:00:02]} 46. Rxh7 {[%clk 0:00:05]}  Rg2+ {[%clk 0:00:02]} 47. Kf1 {[%clk 0:00:05]}  Ra2 {[%clk 0:00:03]} 48. Bb4 {[%clk 0:00:05]}  g4 {[%clk 0:00:02]} 49. Rg7 {[%clk 0:00:03]}  Be5 {[%clk 0:00:02]} 50. Rg8 {[%clk 0:00:03]}  Kf4 {[%clk 0:00:02]} 51. Ra8 {[%clk 0:00:02]}  Kf3 {[%clk 0:00:03]} 0-1


[Site "https://www.chess.com"]

[Event "Titled Tuesday Blitz November 22 Early 2022"]
[White "Odinaev, Timur"]
[Black "Goncalves, Davi Sulzbacher"]
[WhiteFideId "4163770"]
[BlackFideId "2154510"]
[WhiteElo "2306"]
[BlackElo "2182"]
[Result "0-1"]
[Round "10"]
[TimeControl "180+1"]
[Date "2022.11.23"]
[WhiteClock "0:00:05"]
[BlackClock "0:01:58"]

1. e4 {[%clk 0:01:51]}  c6 {[%clk 0:02:58]} 2. d4 {[%clk 0:01:51]}  d5 {[%clk 0:02:59]} 3. Nc3 {[%clk 0:01:52]}  dxe4 {[%clk 0:02:58]} 4. Bc4 {[%clk 0:01:53]}  Nf6 {[%clk 0:02:57]} 5. f3 {[%clk 0:01:53]}  b5 {[%clk 0:02:53]} 6. Bb3 {[%clk 0:01:53]}  e6 {[%clk 0:02:45]} 7. fxe4 {[%clk 0:01:52]}  b4 {[%clk 0:02:45]} 8. Nce2 {[%clk 0:01:47]}  Nxe4 {[%clk 0:02:44]} 9. Nf3 {[%clk 0:01:47]}  Bd6 {[%clk 0:02:33]} 10. O-O {[%clk 0:01:47]}  O-O {[%clk 0:02:33]} 11. Qd3 {[%clk 0:01:47]}  f5 {[%clk 0:02:26]} 12. Nf4 {[%clk 0:01:47]}  Bxf4 {[%clk 0:02:24]} 13. Bxf4 {[%clk 0:01:47]}  Ba6 {[%clk 0:02:24]} 14. Bxe6+ {[%clk 0:01:45]}  Kh8 {[%clk 0:02:22]} 15. Qe3 {[%clk 0:01:37]}  Qe7 {[%clk 0:02:14]} 16. d5 {[%clk 0:01:24]}  Bxf1 {[%clk 0:02:06]} 17. Rxf1 {[%clk 0:01:21]}  Nd7 {[%clk 0:02:06]} 18. Ng5 {[%clk 0:00:20]}  cxd5 {[%clk 0:02:02]} 19. Bxd5 {[%clk 0:00:16]}  Rae8 {[%clk 0:02:00]} 20. Qh3 {[%clk 0:00:14]}  Nxg5 {[%clk 0:01:59]} 21. Bxg5 {[%clk 0:00:11]}  Qxg5 {[%clk 0:02:00]} 22. Qd3 {[%clk 0:00:05]}  Qe3+ {[%clk 0:01:59]} 23. Qxe3 {[%clk 0:00:05]}  Rxe3 {[%clk 0:02:00]} 24. Bc6 {[%clk 0:00:06]}  Ne5 {[%clk 0:02:00]} 25. Bd5 {[%clk 0:00:05]}  Re2 {[%clk 0:01:58]} 26. Bb3 {[%clk 0:00:05]}  f4 {[%clk 0:01:58]} 0-1


[Site "https://www.chess.com"]